[Event "*** Titled Tuesday Blitz"]
[Site "Chess.com"]
[Date "2021.04.06"]
[Round "4"]
[White "beautroll"]
[Black "Iskusnyh"]
[Result "1-0"]
[WhiteElo "2472"]
[BlackElo "2629"]
[TimeControl "180+1"]
[EndTime "10:40:56 PDT"]
[Termination "beautroll won on time"]

1. e4 {[%clk 0:03:00.9]} 1... e6 {[%clk 0:02:59.6]} 2. d4 {[%clk 0:03:00.2]}
2... d5 {[%clk 0:03:00.1]} 3. Nc3 {[%clk 0:03:00.2]} 3... Nf6 {[%clk 0:02:59.4]}
4. e5 {[%clk 0:03:00]} 4... Nfd7 {[%clk 0:02:59.6]} 5. f4 {[%clk 0:02:58.9]}
5... c5 {[%clk 0:03:00.2]} 6. Nf3 {[%clk 0:02:58.7]} 6... Nc6 {[%clk 0:03:00.8]}
7. Be3 {[%clk 0:02:58.5]} 7... Rb8 {[%clk 0:03:01.5]} 8. Qd2 {[%clk 0:02:54.2]}
8... Qa5 {[%clk 0:03:01.1]} 9. a3 {[%clk 0:02:44.3]} 9... b5 {[%clk 0:02:58.1]}
10. dxc5 {[%clk 0:02:41]} 10... b4 {[%clk 0:02:53.1]} 11. Ne2 {[%clk 0:02:37]}
11... Nxc5 {[%clk 0:02:35.4]} 12. a4 {[%clk 0:02:06]} 12... Ne4 {[%clk
0:02:28.7]} 13. Qd1 {[%clk 0:02:03.3]} 13... b3+ {[%clk 0:02:27.9]} 14. c3
{[%clk 0:01:59.1]} 14... Ba6 {[%clk 0:00:57.7]} 15. Ned4 {[%clk 0:01:37.8]}
15... Nxd4 {[%clk 0:00:56]} 16. Nxd4 {[%clk 0:01:25.7]} 16... Bc5 {[%clk
0:00:54.4]} 17. Bxa6 {[%clk 0:01:15.6]} 17... Qxa6 {[%clk 0:00:53.5]} 18. Nb5
{[%clk 0:01:09.2]} 18... Qb6 {[%clk 0:00:48.7]} 19. Bxc5 {[%clk 0:01:04.2]}
19... Qxc5 {[%clk 0:00:48.6]} 20. Qd4 {[%clk 0:00:52.2]} 20... Qxd4 {[%clk
0:00:29.7]} 21. Nxd4 {[%clk 0:00:46]} 21... Kd7 {[%clk 0:00:24.5]} 22. a5 {[%clk
0:00:42.1]} 22... Rhc8 {[%clk 0:00:23]} 23. Ke2 {[%clk 0:00:41.4]} 23... f6
{[%clk 0:00:22.4]} 24. g4 {[%clk 0:00:35.5]} 24... fxe5 {[%clk 0:00:21.4]} 25.
fxe5 {[%clk 0:00:36.4]} 25... Ke7 {[%clk 0:00:20.2]} 26. Rhf1 {[%clk 0:00:35.5]}
26... Rc7 {[%clk 0:00:19.6]} 27. Ra3 {[%clk 0:00:33.3]} 27... Nc5 {[%clk
0:00:17.4]} 28. h4 {[%clk 0:00:27.3]} 28... Rf8 {[%clk 0:00:17]} 29. Rxf8 {[%clk
0:00:26.5]} 29... Kxf8 {[%clk 0:00:16.9]} 30. Nxb3 {[%clk 0:00:27]} 30... Nd7
{[%clk 0:00:17.5]} 31. Nd4 {[%clk 0:00:26.1]} 31... Ke7 {[%clk 0:00:16.7]} 32.
Nb5 {[%clk 0:00:25.1]} 32... Rb7 {[%clk 0:00:15.8]} 33. Rb3 {[%clk 0:00:23.7]}
33... Nc5 {[%clk 0:00:15.4]} 34. Rb4 {[%clk 0:00:23.6]} 34... Na6 {[%clk
0:00:15]} 35. Rb3 {[%clk 0:00:23.3]} 35... Nc7 {[%clk 0:00:14.8]} 36. Nd4 {[%clk
0:00:22.8]} 36... Rxb3 {[%clk 0:00:15.1]} 37. Nxb3 {[%clk 0:00:23.7]} 37... Nb5
{[%clk 0:00:14.7]} 38. Ke3 {[%clk 0:00:23.3]} 38... Nc7 {[%clk 0:00:14]} 39. Nd4
{[%clk 0:00:22.7]} 39... Na6 {[%clk 0:00:13.6]} 40. Nc6+ {[%clk 0:00:22.2]}
40... Kd7 {[%clk 0:00:13]} 41. Nxa7 {[%clk 0:00:22]} 41... Nc5 {[%clk
0:00:12.3]} 42. b4 {[%clk 0:00:20.4]} 42... Ne4 {[%clk 0:00:12.5]} 43. c4 {[%clk
0:00:20.4]} 43... Nc3 {[%clk 0:00:11.7]} 44. Kd4 {[%clk 0:00:19.2]} 44... Ne2+
{[%clk 0:00:11.3]} 45. Ke3 {[%clk 0:00:19.6]} 45... Nc3 {[%clk 0:00:11]} 46. Kd3
{[%clk 0:00:20]} 46... Na2 {[%clk 0:00:09.8]} 47. b5 {[%clk 0:00:16.2]} 47...
Nb4+ {[%clk 0:00:07.9]} 48. Kc3 {[%clk 0:00:16.4]} 48... Na2+ {[%clk 0:00:07.2]}
49. Kd4 {[%clk 0:00:16]} 49... dxc4 {[%clk 0:00:06.1]} 50. Kxc4 {[%clk
0:00:16.9]} 50... Nc1 {[%clk 0:00:05.7]} 51. b6 {[%clk 0:00:14.9]} 51... Ne2
{[%clk 0:00:05.1]} 52. Nb5 {[%clk 0:00:12.1]} 52... Kc6 {[%clk 0:00:04.8]} 53.
Nd4+ {[%clk 0:00:11.9]} 53... Nxd4 {[%clk 0:00:04.4]} 54. Kxd4 {[%clk
0:00:12.8]} 1-0

[Event "*** Titled Tuesday Blitz"]
[Site "Chess.com"]
[Date "2021.04.06"]
[Round "4"]
[White "UKR_Master"]
[Black "Nils_03"]
[Result "0-1"]
[WhiteElo "2511"]
[BlackElo "2381"]
[TimeControl "180+1"]
[EndTime "10:40:56 PDT"]
[Termination "Nils_03 won by resignation"]

1. e4 {[%clk 0:03:00.9]} 1... c5 {[%clk 0:03:00.1]} 2. Nf3 {[%clk 0:03:01.4]}
2... Nc6 {[%clk 0:02:58.1]} 3. Bb5 {[%clk 0:03:01.4]} 3... g6 {[%clk 0:02:55.6]}
4. Bxc6 {[%clk 0:03:01.9]} 4... bxc6 {[%clk 0:02:54.7]} 5. d4 {[%clk 0:03:02.2]}
5... cxd4 {[%clk 0:02:52.6]} 6. Qxd4 {[%clk 0:03:03.1]} 6... Nf6 {[%clk
0:02:50.9]} 7. e5 {[%clk 0:03:03.4]} 7... Nd5 {[%clk 0:02:46.5]} 8. O-O {[%clk
0:03:03.5]} 8... Bg7 {[%clk 0:02:44.2]} 9. Qh4 {[%clk 0:03:02.5]} 9... Nc7
{[%clk 0:02:37]} 10. Bh6 {[%clk 0:02:59.5]} 10... Bxh6 {[%clk 0:02:25.1]} 11.
Qxh6 {[%clk 0:03:00.4]} 11... Ne6 {[%clk 0:02:23.2]} 12. Nc3 {[%clk 0:02:55.8]}
12... Ba6 {[%clk 0:02:20.6]} 13. Rfe1 {[%clk 0:02:54.4]} 13... Qb6 {[%clk
0:02:19.8]} 14. b3 {[%clk 0:02:32.1]} 14... O-O-O {[%clk 0:02:19.4]} 15. Qh4
{[%clk 0:02:22.6]} 15... Rde8 {[%clk 0:01:40.3]} 16. Rad1 {[%clk 0:02:13.3]}
16... h6 {[%clk 0:01:37.8]} 17. Qe4 {[%clk 0:01:38.2]} 17... Bb7 {[%clk
0:01:32.5]} 18. Qc4 {[%clk 0:01:28.3]} 18... g5 {[%clk 0:01:27.5]} 19. Nd4
{[%clk 0:01:26.9]} 19... Ba6 {[%clk 0:01:13.7]} 20. Qa4 {[%clk 0:01:20.4]} 20...
h5 {[%clk 0:01:00.7]} 21. Ne4 {[%clk 0:01:07.3]} 21... Bb7 {[%clk 0:00:54.2]}
22. Nxe6 {[%clk 0:01:05]} 22... fxe6 {[%clk 0:00:54.2]} 23. b4 {[%clk
0:00:51.7]} 23... g4 {[%clk 0:00:47.7]} 24. Nc5 {[%clk 0:00:51.7]} 24... Rd8
{[%clk 0:00:45.1]} 25. Rd4 {[%clk 0:00:50.9]} 25... Rhf8 {[%clk 0:00:32.4]} 26.
Red1 {[%clk 0:00:48.3]} 26... Kb8 {[%clk 0:00:30.6]} 27. Rxd7 {[%clk 0:00:45]}
27... Bc8 {[%clk 0:00:23.7]} 28. Rxd8 {[%clk 0:00:30.8]} 28... Rxd8 {[%clk
0:00:24.6]} 29. c3 {[%clk 0:00:31.2]} 29... Qc7 {[%clk 0:00:18.6]} 30. Re1
{[%clk 0:00:25.4]} 30... Rd5 {[%clk 0:00:18.1]} 31. g3 {[%clk 0:00:19.5]} 31...
Rxe5 {[%clk 0:00:18.3]} 32. Rxe5 {[%clk 0:00:19.4]} 32... Qxe5 {[%clk
0:00:19.2]} 33. Qxc6 {[%clk 0:00:19.1]} 33... Qd5 {[%clk 0:00:18.1]} 34. Qxd5
{[%clk 0:00:16.6]} 34... exd5 {[%clk 0:00:19]} 35. Kf1 {[%clk 0:00:17.2]} 35...
Kc7 {[%clk 0:00:18.6]} 36. Ke2 {[%clk 0:00:17.8]} 36... Bf5 {[%clk 0:00:18.5]}
37. Ke3 {[%clk 0:00:17.3]} 37... Kd6 {[%clk 0:00:19]} 38. Nd3 {[%clk 0:00:15.3]}
38... e5 {[%clk 0:00:18.7]} 39. Nc5 {[%clk 0:00:13.1]} 39... Bc2 {[%clk
0:00:17.7]} 40. a4 {[%clk 0:00:13]} 40... Bd1 {[%clk 0:00:15.8]} 41. a5 {[%clk
0:00:09.2]} 41... Bc2 {[%clk 0:00:15.5]} 42. f3 {[%clk 0:00:08.5]} 42... gxf3
{[%clk 0:00:15.5]} 43. Kxf3 {[%clk 0:00:09.4]} 43... Bf5 {[%clk 0:00:14.8]} 44.
Ke3 {[%clk 0:00:08.5]} 44... Bc8 {[%clk 0:00:13.9]} 45. Nd3 {[%clk 0:00:06.4]}
45... Bf5 {[%clk 0:00:13.8]} 46. Nc5 {[%clk 0:00:03.4]} 46... Bc8 {[%clk
0:00:13.9]} 47. Nb3 {[%clk 0:00:03.3]} 47... Bf5 {[%clk 0:00:13.1]} 48. Nd2
{[%clk 0:00:03.8]} 48... Be6 {[%clk 0:00:12.2]} 49. Nf3 {[%clk 0:00:04.4]} 49...
Bg4 {[%clk 0:00:12.5]} 50. Ng5 {[%clk 0:00:04.5]} 50... Bf5 {[%clk 0:00:12.6]}
51. Nf3 {[%clk 0:00:03.1]} 51... Bg4 {[%clk 0:00:12.9]} 52. Ng1 {[%clk
0:00:01.8]} 52... Bf5 {[%clk 0:00:13]} 53. Ne2 {[%clk 0:00:02.2]} 53... Bg4
{[%clk 0:00:13.3]} 54. Nc1 {[%clk 0:00:03]} 54... Bd1 {[%clk 0:00:13.2]} 55. Nb3
{[%clk 0:00:03.9]} 55... Bxb3 {[%clk 0:00:13.5]} 56. h3 {[%clk 0:00:04.2]} 56...
Bc4 {[%clk 0:00:14]} 57. g4 {[%clk 0:00:04.5]} 57... hxg4 {[%clk 0:00:14.9]} 58.
hxg4 {[%clk 0:00:05.4]} 58... Ke6 {[%clk 0:00:15.8]} 59. Kf3 {[%clk 0:00:05.7]}
59... Kf6 {[%clk 0:00:16.3]} 60. Kg3 {[%clk 0:00:06.2]} 60... Kg5 {[%clk
0:00:16.6]} 0-1

[Event "*** Titled Tuesday Blitz"]
[Site "Chess.com"]
[Date "2021.04.06"]
[Round "4"]
[White "Airquake"]
[Black "jens1102"]
[Result "1-0"]
[WhiteElo "2669"]
[BlackElo "2500"]
[TimeControl "180+1"]
[EndTime "10:40:58 PDT"]
[Termination "Airquake won by checkmate"]

1. e4 {[%clk 0:03:00.9]} 1... c5 {[%clk 0:02:59.6]} 2. Nf3 {[%clk 0:03:01.1]}
2... d6 {[%clk 0:03:00.3]} 3. g3 {[%clk 0:03:00]} 3... Nf6 {[%clk 0:03:00.5]} 4.
Nc3 {[%clk 0:02:59.6]} 4... Nc6 {[%clk 0:03:01.2]} 5. Bg2 {[%clk 0:03:00.1]}
5... e5 {[%clk 0:03:01.7]} 6. O-O {[%clk 0:02:57.7]} 6... Be7 {[%clk 0:03:01.9]}
7. b3 {[%clk 0:02:54]} 7... Be6 {[%clk 0:03:01.8]} 8. Bb2 {[%clk 0:02:54.4]}
8... h6 {[%clk 0:03:02.1]} 9. d3 {[%clk 0:02:51.6]} 9... Qd7 {[%clk 0:03:02.4]}
10. Ne2 {[%clk 0:02:51.2]} 10... Bh3 {[%clk 0:03:01.3]} 11. c3 {[%clk
0:02:51.5]} 11... O-O {[%clk 0:02:56.9]} 12. Qb1 {[%clk 0:02:44.9]} 12... Nh5
{[%clk 0:02:52.5]} 13. d4 {[%clk 0:02:41.8]} 13... cxd4 {[%clk 0:02:48.1]} 14.
cxd4 {[%clk 0:02:42.7]} 14... Bxg2 {[%clk 0:02:45]} 15. Kxg2 {[%clk 0:02:42.6]}
15... exd4 {[%clk 0:02:32.5]} 16. Nexd4 {[%clk 0:02:36.6]} 16... Nxd4 {[%clk
0:02:27]} 17. Nxd4 {[%clk 0:02:32.3]} 17... Bf6 {[%clk 0:02:14]} 18. Rd1 {[%clk
0:02:31.4]} 18... Rfe8 {[%clk 0:01:58.3]} 19. Nf5 {[%clk 0:02:28.2]} 19... Bxb2
{[%clk 0:01:58]} 20. Qxb2 {[%clk 0:02:16.2]} 20... Rxe4 {[%clk 0:01:56]} 21.
Nxd6 {[%clk 0:02:15.5]} 21... Re6 {[%clk 0:01:35.9]} 22. Nf5 {[%clk 0:01:59.4]}
22... Qc6+ {[%clk 0:01:32.4]} 23. Kg1 {[%clk 0:01:59.3]} 23... Qe4 {[%clk
0:01:03.1]} 24. Ne3 {[%clk 0:01:53.1]} 24... Qf3 {[%clk 0:00:57]} 25. Rd3 {[%clk
0:01:48.9]} 25... Rae8 {[%clk 0:00:54.9]} 26. Rad1 {[%clk 0:01:42.6]} 26... Kh7
{[%clk 0:00:26]} 27. Qc2 {[%clk 0:01:38.6]} 27... g6 {[%clk 0:00:25.9]} 28. Qc3
{[%clk 0:01:30.6]} 28... R8e7 {[%clk 0:00:25.3]} 29. Qd4 {[%clk 0:01:01.5]}
29... Re4 {[%clk 0:00:24.1]} 30. Qxa7 {[%clk 0:00:51.8]} 30... Ng7 {[%clk
0:00:23.4]} 31. Nf1 {[%clk 0:00:45.3]} 31... Qe2 {[%clk 0:00:22.1]} 32. R1d2
{[%clk 0:00:31.4]} 32... Qe1 {[%clk 0:00:22.1]} 33. Qc5 {[%clk 0:00:31.6]} 33...
Re2 {[%clk 0:00:21.6]} 34. Rd1 {[%clk 0:00:31.8]} 34... Ne6 {[%clk 0:00:12]} 35.
Qb6 {[%clk 0:00:25.8]} 35... Ng5 {[%clk 0:00:10.7]} 36. Rxe1 {[%clk 0:00:23.4]}
36... Rxe1 {[%clk 0:00:11.3]} 37. Kg2 {[%clk 0:00:22.5]} 37... Rb1 {[%clk
0:00:11.4]} 38. h4 {[%clk 0:00:22.1]} 38... Ne4 {[%clk 0:00:10.6]} 39. Re3
{[%clk 0:00:21.9]} 39... f5 {[%clk 0:00:10.4]} 40. Nd2 {[%clk 0:00:21.3]} 40...
Rb2 {[%clk 0:00:07.5]} 41. Nxe4 {[%clk 0:00:21.5]} 41... fxe4 {[%clk 0:00:08.4]}
42. Qd6 {[%clk 0:00:21]} 42... Rf7 {[%clk 0:00:08.3]} 43. Rxe4 {[%clk
0:00:10.7]} 43... Rfxf2+ {[%clk 0:00:07.3]} 44. Kg1 {[%clk 0:00:10.1]} 44...
Rg2+ {[%clk 0:00:06.6]} 45. Kf1 {[%clk 0:00:09.3]} 45... Rgf2+ {[%clk
0:00:07.1]} 46. Ke1 {[%clk 0:00:09]} 46... Rf7 {[%clk 0:00:07.8]} 47. Re7 {[%clk
0:00:08.6]} 47... Rf2 {[%clk 0:00:08.1]} 48. Rxf7+ {[%clk 0:00:08.4]} 48... Rxf7
{[%clk 0:00:09]} 49. Qe6 {[%clk 0:00:09]} 49... Kg7 {[%clk 0:00:09.3]} 50. g4
{[%clk 0:00:07.9]} 50... Rf6 {[%clk 0:00:09.3]} 51. Qe5 {[%clk 0:00:06.4]} 51...
Kf7 {[%clk 0:00:09.8]} 52. g5 {[%clk 0:00:06.8]} 52... Re6 {[%clk 0:00:10.2]}
53. Qxe6+ {[%clk 0:00:06.7]} 53... Kxe6 {[%clk 0:00:11.1]} 54. gxh6 {[%clk
0:00:07.4]} 54... Kf7 {[%clk 0:00:12]} 55. a4 {[%clk 0:00:07.9]} 55... Kg8
{[%clk 0:00:12.4]} 56. b4 {[%clk 0:00:08.8]} 56... Kh7 {[%clk 0:00:12.9]} 57. a5
{[%clk 0:00:09.7]} 57... Kxh6 {[%clk 0:00:13.3]} 58. b5 {[%clk 0:00:10.4]} 58...
Kh5 {[%clk 0:00:14]} 59. a6 {[%clk 0:00:11.1]} 59... bxa6 {[%clk 0:00:14.9]} 60.
bxa6 {[%clk 0:00:12]} 60... Kxh4 {[%clk 0:00:15.7]} 61. a7 {[%clk 0:00:12]}
61... Kh3 {[%clk 0:00:16.6]} 62. Kf1 {[%clk 0:00:12.6]} 62... g5 {[%clk
0:00:17.5]} 63. a8=Q {[%clk 0:00:12.8]} 63... g4 {[%clk 0:00:18.4]} 64. Qg2+
{[%clk 0:00:13.3]} 64... Kh4 {[%clk 0:00:18.7]} 65. Kf2 {[%clk 0:00:13.4]} 65...
Kg5 {[%clk 0:00:19.6]} 66. Ke3 {[%clk 0:00:13.8]} 66... Kf5 {[%clk 0:00:20.1]}
67. Qg3 {[%clk 0:00:14]} 67... Kg5 {[%clk 0:00:21]} 68. Ke4 {[%clk 0:00:14.1]}
68... Kh5 {[%clk 0:00:21.6]} 69. Kf5 {[%clk 0:00:14.2]} 69... Kh6 {[%clk
0:00:22.5]} 70. Qxg4 {[%clk 0:00:14.5]} 70... Kh7 {[%clk 0:00:22.9]} 71. Kf6
{[%clk 0:00:15.4]} 71... Kh8 {[%clk 0:00:23.3]} 72. Qg7# {[%clk 0:00:16.2]} 1-0

[Event "*** Titled Tuesday Blitz"]
[Site "Chess.com"]
[Date "2021.04.06"]
[Round "4"]
[White "Fraler15"]
[Black "morte-negra"]
[Result "0-1"]
[WhiteElo "2218"]
[BlackElo "1950"]
[TimeControl "180+1"]
[EndTime "10:40:58 PDT"]
[Termination "morte-negra won by checkmate"]

1. e4 {[%clk 0:03:00.9]} 1... c5 {[%clk 0:02:59.4]} 2. Nf3 {[%clk 0:03:00.4]}
2... d6 {[%clk 0:02:59.1]} 3. d4 {[%clk 0:02:59.6]} 3... cxd4 {[%clk 0:02:59.5]}
4. Nxd4 {[%clk 0:03:00.5]} 4... Nf6 {[%clk 0:02:59.5]} 5. Nc3 {[%clk 0:03:00.1]}
5... a6 {[%clk 0:02:59.8]} 6. Bc4 {[%clk 0:02:59]} 6... e6 {[%clk 0:02:59.4]} 7.
Bb3 {[%clk 0:02:57]} 7... Qc7 {[%clk 0:02:57.3]} 8. Be3 {[%clk 0:02:56.1]} 8...
Nc6 {[%clk 0:02:57.7]} 9. f3 {[%clk 0:02:55.5]} 9... Be7 {[%clk 0:02:56.3]} 10.
a3 {[%clk 0:02:55.5]} 10... Bd7 {[%clk 0:02:55.3]} 11. Qd2 {[%clk 0:02:54.9]}
11... Nxd4 {[%clk 0:02:54.8]} 12. Bxd4 {[%clk 0:02:54.6]} 12... Bc6 {[%clk
0:02:55.3]} 13. O-O-O {[%clk 0:02:53.1]} 13... O-O {[%clk 0:02:52.6]} 14. Kb1
{[%clk 0:02:51.2]} 14... b5 {[%clk 0:02:52.4]} 15. g4 {[%clk 0:02:48.9]} 15...
Rab8 {[%clk 0:02:41.8]} 16. h4 {[%clk 0:02:46.3]} 16... Rfc8 {[%clk 0:02:39.8]}
17. h5 {[%clk 0:02:40.9]} 17... a5 {[%clk 0:02:38.1]} 18. g5 {[%clk 0:02:40.8]}
18... Ne8 {[%clk 0:02:34.8]} 19. g6 {[%clk 0:02:40.3]} 19... b4 {[%clk
0:02:26.2]} 20. h6 {[%clk 0:01:46.8]} 20... bxc3 {[%clk 0:02:08.6]} 21. gxh7+
{[%clk 0:01:45.8]} 21... Kh8 {[%clk 0:02:05.9]} 22. hxg7+ {[%clk 0:01:45.5]}
22... Nxg7 {[%clk 0:02:05.8]} 23. Qh6 {[%clk 0:01:24.1]} 23... Bf8 {[%clk
0:01:43.9]} 24. Rdg1 {[%clk 0:01:20]} 24... e5 {[%clk 0:01:37.4]} 25. Bxc3
{[%clk 0:01:19.2]} 25... a4 {[%clk 0:01:28.2]} 26. Ba2 {[%clk 0:01:11.7]} 26...
Bxe4 {[%clk 0:01:20.3]} 27. Ka1 {[%clk 0:00:55.8]} 27... Bxc2 {[%clk 0:01:02.6]}
28. Rh2 {[%clk 0:00:54.4]} 28... Bg6 {[%clk 0:00:54.6]} 29. Rxg6 {[%clk
0:00:45.6]} 29... fxg6 {[%clk 0:00:51.5]} 30. Qxg6 {[%clk 0:00:46.5]} 30... Rb3
{[%clk 0:00:34.7]} 31. f4 {[%clk 0:00:41.9]} 31... Rxc3 {[%clk 0:00:29.1]} 32.
bxc3 {[%clk 0:00:28.7]} 32... Qxc3+ {[%clk 0:00:28.2]} 33. Rb2 {[%clk
0:00:28.9]} 33... Rb8 {[%clk 0:00:23.5]} 34. Qg2 {[%clk 0:00:17.3]} 34... Rxb2
{[%clk 0:00:20.3]} 35. Qxb2 {[%clk 0:00:18.2]} 35... Qxb2+ {[%clk 0:00:19.5]}
36. Kxb2 {[%clk 0:00:19.1]} 36... exf4 {[%clk 0:00:19.6]} 37. Bg8 {[%clk
0:00:18.8]} 37... Nf5 {[%clk 0:00:18.5]} 38. Kc3 {[%clk 0:00:18.7]} 38... f3
{[%clk 0:00:17.6]} 39. Kd3 {[%clk 0:00:18.6]} 39... Bh6 {[%clk 0:00:15.3]} 40.
Be6 {[%clk 0:00:16.4]} 40... Ng3 {[%clk 0:00:14.6]} 41. Bd5 {[%clk 0:00:15.3]}
41... f2 {[%clk 0:00:14.2]} 42. Bg2 {[%clk 0:00:15.3]} 42... Kxh7 {[%clk
0:00:13.3]} 43. Kc4 {[%clk 0:00:11.6]} 43... Kg7 {[%clk 0:00:12.7]} 44. Kb4
{[%clk 0:00:10]} 44... f1=Q {[%clk 0:00:11.7]} 45. Bxf1 {[%clk 0:00:09.6]} 45...
Nxf1 {[%clk 0:00:11.6]} 46. Kxa4 {[%clk 0:00:10.5]} 46... Kf6 {[%clk 0:00:11.4]}
47. Kb4 {[%clk 0:00:10.5]} 47... Be3 {[%clk 0:00:11.2]} 48. a4 {[%clk
0:00:11.4]} 48... Ke5 {[%clk 0:00:10.9]} 49. Kc4 {[%clk 0:00:12.3]} 49... d5+
{[%clk 0:00:10.6]} 50. Kd3 {[%clk 0:00:12.8]} 50... Ba7 {[%clk 0:00:09.6]} 51.
a5 {[%clk 0:00:12.4]} 51... Ng3 {[%clk 0:00:09.2]} 52. a6 {[%clk 0:00:13.3]}
52... d4 {[%clk 0:00:08.8]} 53. Kc2 {[%clk 0:00:14.2]} 53... Ke4 {[%clk
0:00:08.7]} 54. Kd2 {[%clk 0:00:15.1]} 54... d3 {[%clk 0:00:07.9]} 55. Kc3
{[%clk 0:00:15.3]} 55... Ke3 {[%clk 0:00:07.9]} 56. Kc4 {[%clk 0:00:16.2]} 56...
d2 {[%clk 0:00:07.9]} 57. Kb5 {[%clk 0:00:17.1]} 57... d1=Q {[%clk 0:00:07.3]}
58. Kc6 {[%clk 0:00:18]} 58... Qd4 {[%clk 0:00:06.3]} 59. Kb7 {[%clk 0:00:18.7]}
59... Qb6+ {[%clk 0:00:06.1]} 60. Ka8 {[%clk 0:00:19.6]} 60... Qb5 {[%clk
0:00:03.9]} 61. Kxa7 {[%clk 0:00:19.2]} 61... Kd4 {[%clk 0:00:02.6]} 62. Ka8
{[%clk 0:00:20.1]} 62... Kc5 {[%clk 0:00:02.4]} 63. a7 {[%clk 0:00:19.9]} 63...
Qe8+ {[%clk 0:00:01.7]} 64. Kb7 {[%clk 0:00:20]} 64... Qd7+ {[%clk 0:00:01.5]}
65. Ka8 {[%clk 0:00:20.9]} 65... Qc8# {[%clk 0:00:01.2]} 0-1

[Event "*** Titled Tuesday Blitz"]
[Site "Chess.com"]
[Date "2021.04.06"]
[Round "4"]
[White "horripile"]
[Black "Oglob71"]
[Result "1-0"]
[WhiteElo "2597"]
[BlackElo "2385"]
[TimeControl "180+1"]
[EndTime "10:41:01 PDT"]
[Termination "horripile won on time"]

1. e4 {[%clk 0:03:00.9]} 1... c5 {[%clk 0:02:59.9]} 2. Nf3 {[%clk 0:03:00.5]}
2... e6 {[%clk 0:03:00.3]} 3. g3 {[%clk 0:03:00.1]} 3... Nc6 {[%clk 0:02:59.2]}
4. Bg2 {[%clk 0:03:00]} 4... Nf6 {[%clk 0:02:59.8]} 5. Nc3 {[%clk 0:03:00.2]}
5... a6 {[%clk 0:02:54.6]} 6. O-O {[%clk 0:02:57.8]} 6... b5 {[%clk 0:02:54.5]}
7. e5 {[%clk 0:02:55]} 7... Ng4 {[%clk 0:02:54]} 8. h3 {[%clk 0:02:49.3]} 8...
Nh6 {[%clk 0:02:49.7]} 9. d4 {[%clk 0:02:48.3]} 9... cxd4 {[%clk 0:02:48.6]} 10.
Nxd4 {[%clk 0:02:45.7]} 10... Bb7 {[%clk 0:02:49.2]} 11. Ne4 {[%clk 0:02:13.2]}
11... Nxe5 {[%clk 0:02:42.2]} 12. Bg5 {[%clk 0:02:09.9]} 12... f6 {[%clk
0:02:34.7]} 13. Bxh6 {[%clk 0:02:08.1]} 13... gxh6 {[%clk 0:02:33.8]} 14. Qh5+
{[%clk 0:02:08.5]} 14... Ng6 {[%clk 0:02:27.6]} 15. Rfe1 {[%clk 0:02:08.2]}
15... Kf7 {[%clk 0:02:18.5]} 16. Rad1 {[%clk 0:02:02.7]} 16... Qc7 {[%clk
0:02:10.3]} 17. Nf5 {[%clk 0:01:47.5]} 17... d5 {[%clk 0:01:51.9]} 18. Nxf6
{[%clk 0:01:41.2]} 18... Kxf6 {[%clk 0:01:50.4]} 19. Nd4 {[%clk 0:01:27.4]}
19... Bc8 {[%clk 0:01:40.7]} 20. Nxe6 {[%clk 0:01:25.1]} 20... Bxe6 {[%clk
0:01:37.9]} 21. Rxe6+ {[%clk 0:01:26]} 21... Kxe6 {[%clk 0:01:34.4]} 22. Bxd5+
{[%clk 0:01:04.5]} 22... Kf6 {[%clk 0:01:34.3]} 23. Qf3+ {[%clk 0:01:01.5]}
23... Kg7 {[%clk 0:01:33.1]} 24. Bxa8 {[%clk 0:01:01]} 24... Be7 {[%clk
0:01:32.7]} 25. Qb7 {[%clk 0:00:52.3]} 25... Qxb7 {[%clk 0:01:30.1]} 26. Bxb7
{[%clk 0:00:51.9]} 26... a5 {[%clk 0:01:30.6]} 27. Ba6 {[%clk 0:00:50.8]} 27...
Rb8 {[%clk 0:01:21.8]} 28. Rd5 {[%clk 0:00:50.2]} 28... b4 {[%clk 0:01:16.3]}
29. Rxa5 {[%clk 0:00:48.9]} 29... Rb6 {[%clk 0:01:16.1]} 30. Bd3 {[%clk
0:00:46.8]} 30... Bf6 {[%clk 0:01:14.3]} 31. b3 {[%clk 0:00:44.9]} 31... Bd4
{[%clk 0:01:12.4]} 32. Kg2 {[%clk 0:00:43.7]} 32... Rf6 {[%clk 0:01:12]} 33. f4
{[%clk 0:00:43]} 33... h5 {[%clk 0:01:10.5]} 34. Rxh5 {[%clk 0:00:40.4]} 34...
Rf7 {[%clk 0:01:07.6]} 35. Rg5 {[%clk 0:00:39.3]} 35... Kf6 {[%clk 0:01:05.2]}
36. Rf5+ {[%clk 0:00:37]} 36... Kg7 {[%clk 0:01:04.3]} 37. Rxf7+ {[%clk
0:00:34.4]} 37... Kxf7 {[%clk 0:01:04.2]} 38. Be4 {[%clk 0:00:29.4]} 38... Kg7
{[%clk 0:01:02.5]} 39. Kf3 {[%clk 0:00:30.3]} 39... Nf8 {[%clk 0:00:57]} 40. Bf5
{[%clk 0:00:28.9]} 40... Ng6 {[%clk 0:00:55.3]} 41. g4 {[%clk 0:00:28.6]} 41...
Bc3 {[%clk 0:00:54.6]} 42. Ke4 {[%clk 0:00:29.5]} 42... h6 {[%clk 0:00:52.7]}
43. Bxg6 {[%clk 0:00:25.9]} 43... Kxg6 {[%clk 0:00:52.3]} 44. h4 {[%clk
0:00:24.8]} 44... Be1 {[%clk 0:00:49.6]} 45. h5+ {[%clk 0:00:24.8]} 45... Kf6
{[%clk 0:00:49.6]} 46. Kd3 {[%clk 0:00:23.8]} 46... Bg3 {[%clk 0:00:39.3]} 47.
Ke4 {[%clk 0:00:20.6]} 47... Bf2 {[%clk 0:00:33.9]} 48. c3 {[%clk 0:00:18.2]}
48... bxc3 {[%clk 0:00:33]} 49. Kd3 {[%clk 0:00:18.8]} 49... Bd4 {[%clk
0:00:32.5]} 50. a4 {[%clk 0:00:18.4]} 50... Ke6 {[%clk 0:00:27.7]} 51. b4 {[%clk
0:00:18.6]} 51... Kd5 {[%clk 0:00:27.4]} 52. g5 {[%clk 0:00:18.8]} 52... Ke6
{[%clk 0:00:19.7]} 53. b5 {[%clk 0:00:16.9]} 53... Kf5 {[%clk 0:00:16.3]} 54.
gxh6 {[%clk 0:00:16.9]} 54... Kxf4 {[%clk 0:00:12.7]} 55. h7 {[%clk 0:00:17.4]}
55... Bg7 {[%clk 0:00:10.9]} 56. b6 {[%clk 0:00:15.3]} 56... Ke5 {[%clk
0:00:09.9]} 57. b7 {[%clk 0:00:15]} 57... Kd6 {[%clk 0:00:08.6]} 58. b8=Q+
{[%clk 0:00:15.1]} 58... Kc6 {[%clk 0:00:09.2]} 59. Qb5+ {[%clk 0:00:14.4]} 1-0